[Event "Titled Tuesday Blitz March 08 Late 2022"]
[White "Kushko, Dmitriy"]
[Black "Butti, Enrique"]
[WhiteFideId "14162261"]
[BlackFideId "3700470"]
[WhiteElo "2225"]
[BlackElo "2080"]
[Result "1-0"]
[Round "01"]
[TimeControl "180+1"]
[Date "2022.03.09"]
[WhiteClock "0:00:11"]
[BlackClock "0:01:01"]

1. Nf3 {[%clk 0:03:00]}  d5 {[%clk 0:02:58]} 2. g3 {[%clk 0:03:00]}  c5 {[%clk 0:02:57]} 3. Bg2 {[%clk 0:02:59]}  Nc6 {[%clk 0:02:57]} 4. O-O {[%clk 0:02:59]}  Nf6 {[%clk 0:02:56]} 5. d4 {[%clk 0:02:58]}  e6 {[%clk 0:02:55]} 6. c4 {[%clk 0:02:57]}  dxc4 {[%clk 0:02:54]} 7. dxc5 {[%clk 0:02:56]}  Qxd1 {[%clk 0:02:52]} 8. Rxd1 {[%clk 0:02:57]}  Bxc5 {[%clk 0:02:49]} 9. Nbd2 {[%clk 0:02:56]}  c3 {[%clk 0:02:47]} 10. bxc3 {[%clk 0:02:56]}  O-O {[%clk 0:02:42]} 11. Nb3 {[%clk 0:02:56]}  Be7 {[%clk 0:02:41]} 12. c4 {[%clk 0:02:56]}  Bd7 {[%clk 0:02:37]} 13. Bb2 {[%clk 0:02:55]}  Rfd8 {[%clk 0:02:36]} 14. Ne5 {[%clk 0:02:54]}  Nxe5 {[%clk 0:02:34]} 15. Bxe5 {[%clk 0:02:55]}  Bc6 {[%clk 0:02:33]} 16. Bxc6 {[%clk 0:02:54]}  bxc6 {[%clk 0:02:32]} 17. Na5 {[%clk 0:02:46]}  Ng4 {[%clk 0:02:29]} 18. Nxc6 {[%clk 0:02:31]}  Nxe5 {[%clk 0:02:26]} 19. Nxe5 {[%clk 0:02:14]}  Bf6 {[%clk 0:02:25]} 20. Rxd8+ {[%clk 0:01:36]}  Rxd8 {[%clk 0:02:22]} 21. Nc6 {[%clk 0:01:36]}  Rd2 {[%clk 0:02:14]} 22. Rb1 {[%clk 0:01:33]}  g6 {[%clk 0:02:12]} 23. e4 {[%clk 0:01:19]}  Rxa2 {[%clk 0:02:04]} 24. e5 {[%clk 0:01:16]}  Bg7 {[%clk 0:02:01]} 25. f4 {[%clk 0:00:37]}  Bf8 {[%clk 0:01:53]} 26. Rb8 {[%clk 0:00:26]}  Kg7 {[%clk 0:01:52]} 27. Rb7 {[%clk 0:00:23]}  Bc5+ {[%clk 0:01:51]} 28. Kh1 {[%clk 0:00:20]}  Rc2 {[%clk 0:01:46]} 29. Nd8 {[%clk 0:00:18]}  a5 {[%clk 0:01:32]} 30. Nxe6+ {[%clk 0:00:15]}  Kg8 {[%clk 0:01:22]} 31. Nxc5 {[%clk 0:00:16]}  Rxc4 {[%clk 0:01:20]} 32. Nd7 {[%clk 0:00:11]}  a4 {[%clk 0:01:18]} 33. Ra7 {[%clk 0:00:10]}  Rc1+ {[%clk 0:01:16]} 34. Kg2 {[%clk 0:00:10]}  Ra1 {[%clk 0:01:15]} 35. Kh3 {[%clk 0:00:09]}  a3 {[%clk 0:01:14]} 36. Nf6+ {[%clk 0:00:09]}  Kg7 {[%clk 0:01:12]} 37. Ne8+ {[%clk 0:00:10]}  Kf8 {[%clk 0:01:07]} 38. Nd6 {[%clk 0:00:10]}  a2 {[%clk 0:01:02]} 39. Rxf7+ {[%clk 0:00:10]}  Kg8 {[%clk 0:01:01]} 40. Ra7 {[%clk 0:00:11]} 1-0


[Site "https://www.chess.com"]

[Event "Titled Tuesday Blitz March 08 Late 2022"]
[White "Leiva, Gianmarco"]
[Black "Todorovic, Bojan"]
[WhiteFideId "3804399"]
[BlackFideId "917087"]
[WhiteElo "2694"]
[BlackElo "2376"]
[Result "1-0"]
[Round "01"]
[TimeControl "180+1"]
[Date "2022.03.09"]
[WhiteClock "0:00:57"]
[BlackClock "0:00:28"]

1. e4 {[%clk 0:02:12]}  c5 {[%clk 0:02:58]} 2. Nf3 {[%clk 0:02:12]}  e6 {[%clk 0:02:57]} 3. g3 {[%clk 0:02:11]}  Nc6 {[%clk 0:02:55]} 4. Bg2 {[%clk 0:02:11]}  Nf6 {[%clk 0:02:49]} 5. Qe2 {[%clk 0:02:06]}  Be7 {[%clk 0:02:46]} 6. O-O {[%clk 0:02:01]}  O-O {[%clk 0:02:45]} 7. Rd1 {[%clk 0:02:00]}  d5 {[%clk 0:02:39]} 8. exd5 {[%clk 0:01:59]}  Nxd5 {[%clk 0:02:38]} 9. d4 {[%clk 0:01:51]}  cxd4 {[%clk 0:02:26]} 10. Nxd4 {[%clk 0:01:52]}  Nxd4 {[%clk 0:02:18]} 11. Rxd4 {[%clk 0:01:53]}  Bf6 {[%clk 0:02:12]} 12. Rd1 {[%clk 0:01:52]}  Qb6 {[%clk 0:02:09]} 13. c4 {[%clk 0:01:51]}  Nb4 {[%clk 0:02:07]} 14. Be3 {[%clk 0:01:50]}  Qc7 {[%clk 0:02:03]} 15. Nc3 {[%clk 0:01:50]}  a6 {[%clk 0:02:00]} 16. Rac1 {[%clk 0:01:48]}  Bd7 {[%clk 0:01:49]} 17. a3 {[%clk 0:01:14]}  Nc6 {[%clk 0:01:47]} 18. Nd5 {[%clk 0:01:14]}  exd5 {[%clk 0:01:28]} 19. cxd5 {[%clk 0:01:15]}  Qe5 {[%clk 0:01:23]} 20. dxc6 {[%clk 0:01:14]}  Bxc6 {[%clk 0:01:22]} 21. Bxc6 {[%clk 0:01:14]}  bxc6 {[%clk 0:01:22]} 22. b4 {[%clk 0:01:05]}  Qb5 {[%clk 0:01:13]} 23. Qf3 {[%clk 0:01:04]}  a5 {[%clk 0:01:06]} 24. Qxc6 {[%clk 0:01:01]}  Qxc6 {[%clk 0:01:02]} 25. Rxc6 {[%clk 0:01:02]}  axb4 {[%clk 0:01:01]} 26. axb4 {[%clk 0:01:03]}  Rfb8 {[%clk 0:00:57]} 27. Rb1 {[%clk 0:01:03]}  Rb5 {[%clk 0:00:56]} 28. Rb6 {[%clk 0:01:01]}  Rxb6 {[%clk 0:00:46]} 29. Bxb6 {[%clk 0:01:02]}  Rb8 {[%clk 0:00:47]} 30. Bc5 {[%clk 0:00:57]}  Rb5 {[%clk 0:00:46]} 31. Kf1 {[%clk 0:00:56]}  g6 {[%clk 0:00:40]} 32. Ke2 {[%clk 0:00:57]}  Kg7 {[%clk 0:00:31]} 33. Kd3 {[%clk 0:00:57]}  h5 {[%clk 0:00:30]} 34. Kc4 {[%clk 0:00:57]}  Rb8 {[%clk 0:00:29]} 35. b5 {[%clk 0:00:57]}  Bd8 {[%clk 0:00:28]} 36. b6 {[%clk 0:00:58]}  Rb7 {[%clk 0:00:28]} 37. Kd5 {[%clk 0:00:57]} 1-0


[Site "https://www.chess.com"]

[Event "Titled Tuesday Blitz March 08 Late 2022"]
[White "Levin, Anthony"]
[Black "Zhurbinsky, David"]
[WhiteFideId "30940680"]
[BlackFideId "2072904"]
[WhiteElo "1872"]
[BlackElo "2540"]
[Result "0-1"]
[Round "01"]
[TimeControl "180+1"]
[Date "2022.03.09"]
[WhiteClock "0:00:20"]
[BlackClock "0:00:30"]

1. e4 {[%clk 0:02:57]}  e5 {[%clk 0:02:59]} 2. Nf3 {[%clk 0:02:58]}  Nc6 {[%clk 0:02:59]} 3. Bb5 {[%clk 0:02:58]}  a6 {[%clk 0:02:59]} 4. Ba4 {[%clk 0:02:58]}  Nf6 {[%clk 0:02:58]} 5. O-O {[%clk 0:02:58]}  Be7 {[%clk 0:02:58]} 6. Re1 {[%clk 0:02:57]}  b5 {[%clk 0:02:58]} 7. Bb3 {[%clk 0:02:58]}  O-O {[%clk 0:02:59]} 8. h3 {[%clk 0:02:57]}  Bb7 {[%clk 0:02:57]} 9. a4 {[%clk 0:02:55]}  d6 {[%clk 0:02:47]} 10. c3 {[%clk 0:02:45]}  h6 {[%clk 0:02:34]} 11. d4 {[%clk 0:02:39]}  Re8 {[%clk 0:02:16]} 12. Nbd2 {[%clk 0:02:26]}  Bf8 {[%clk 0:02:12]} 13. d5 {[%clk 0:02:24]}  Ne7 {[%clk 0:01:56]} 14. Nf1 {[%clk 0:02:09]}  g6 {[%clk 0:01:50]} 15. Ng3 {[%clk 0:01:58]}  Bg7 {[%clk 0:01:50]} 16. Qe2 {[%clk 0:01:53]}  c6 {[%clk 0:01:40]} 17. dxc6 {[%clk 0:01:51]}  Bxc6 {[%clk 0:01:41]} 18. Rd1 {[%clk 0:01:42]}  Qc7 {[%clk 0:01:36]} 19. Bc2 {[%clk 0:01:27]}  Rad8 {[%clk 0:01:27]} 20. Be3 {[%clk 0:01:26]}  d5 {[%clk 0:01:22]} 21. exd5 {[%clk 0:01:26]}  Nexd5 {[%clk 0:01:21]} 22. axb5 {[%clk 0:01:25]}  axb5 {[%clk 0:01:13]} 23. Bc5 {[%clk 0:00:57]}  e4 {[%clk 0:00:56]} 24. Nd4 {[%clk 0:00:56]}  e3 {[%clk 0:00:52]} 25. Nf1 {[%clk 0:00:41]}  Nf4 {[%clk 0:00:46]} 26. Qe1 {[%clk 0:00:19]}  e2 {[%clk 0:00:43]} 27. Nxe2 {[%clk 0:00:18]}  Nxe2+ {[%clk 0:00:41]} 28. Qxe2 {[%clk 0:00:18]}  Rxe2 {[%clk 0:00:41]} 29. Ng3 {[%clk 0:00:19]}  Rxc2 {[%clk 0:00:39]} 30. Rd7 {[%clk 0:00:19]}  Qxd7 {[%clk 0:00:32]} 31. Ra7 {[%clk 0:00:20]}  Qd1+ {[%clk 0:00:30]} 0-1


[Site "https://www.chess.com"]

[Event "Titled Tuesday Blitz March 08 Late 2022"]
[White "Makarian, Rudik"]
[Black "Ronka, Erik"]
[WhiteFideId "44105681"]
[BlackFideId "505080"]
[WhiteElo "2388"]
[BlackElo "2264"]
[Result "1-0"]
[Round "01"]
[TimeControl "180+1"]
[Date "2022.03.08"]
[WhiteClock "0:02:18"]
[BlackClock "0:00:56"]

1. c4 {[%clk 0:03:00]}  c6 {[%clk 0:02:56]} 2. Nf3 {[%clk 0:03:00]}  d5 {[%clk 0:02:57]} 3. b3 {[%clk 0:02:59]}  Bg4 {[%clk 0:02:56]} 4. Bb2 {[%clk 0:02:59]}  e6 {[%clk 0:02:56]} 5. e3 {[%clk 0:03:00]}  Nf6 {[%clk 0:02:56]} 6. Be2 {[%clk 0:03:00]}  Nbd7 {[%clk 0:02:56]} 7. O-O {[%clk 0:02:58]}  Bd6 {[%clk 0:02:57]} 8. d4 {[%clk 0:02:57]}  O-O {[%clk 0:02:57]} 9. Nbd2 {[%clk 0:02:58]}  Qe7 {[%clk 0:02:58]} 10. h3 {[%clk 0:02:58]}  Bh5 {[%clk 0:02:58]} 11. Ne5 {[%clk 0:02:57]}  Bxe2 {[%clk 0:02:57]} 12. Qxe2 {[%clk 0:02:57]}  Ba3 {[%clk 0:02:55]} 13. Ndf3 {[%clk 0:02:55]}  Bxb2 {[%clk 0:02:55]} 14. Qxb2 {[%clk 0:02:56]}  Nxe5 {[%clk 0:02:54]} 15. Nxe5 {[%clk 0:02:55]}  a5 {[%clk 0:02:49]} 16. a3 {[%clk 0:02:49]}  Nd7 {[%clk 0:02:46]} 17. Nd3 {[%clk 0:02:47]}  a4 {[%clk 0:02:30]} 18. cxd5 {[%clk 0:02:46]}  cxd5 {[%clk 0:02:25]} 19. bxa4 {[%clk 0:02:44]}  Qd6 {[%clk 0:02:16]} 20. Qb5 {[%clk 0:02:39]}  Ra6 {[%clk 0:02:12]} 21. Rfb1 {[%clk 0:02:30]}  Rb6 {[%clk 0:02:10]} 22. Qa5 {[%clk 0:02:29]}  Ra6 {[%clk 0:02:04]} 23. Qb4 {[%clk 0:02:27]}  Qxb4 {[%clk 0:01:53]} 24. axb4 {[%clk 0:02:28]}  Rfa8 {[%clk 0:01:53]} 25. Nc5 {[%clk 0:02:26]}  Nxc5 {[%clk 0:01:40]} 26. bxc5 {[%clk 0:02:27]}  R8a7 {[%clk 0:01:37]} 27. Rb4 {[%clk 0:02:26]}  Kf8 {[%clk 0:01:36]} 28. Rab1 {[%clk 0:02:26]}  Rxa4 {[%clk 0:01:34]} 29. Rxa4 {[%clk 0:02:26]}  Rxa4 {[%clk 0:01:35]} 30. Rxb7 {[%clk 0:02:26]}  g5 {[%clk 0:01:35]} 31. g4 {[%clk 0:02:26]}  Kg7 {[%clk 0:01:33]} 32. Kg2 {[%clk 0:02:27]}  Rc4 {[%clk 0:01:33]} 33. Kg3 {[%clk 0:02:27]}  Kg6 {[%clk 0:01:34]} 34. h4 {[%clk 0:02:27]}  gxh4+ {[%clk 0:01:29]} 35. Kxh4 {[%clk 0:02:27]}  Rc2 {[%clk 0:01:30]} 36. Kg3 {[%clk 0:02:28]}  f6 {[%clk 0:01:28]} 37. Re7 {[%clk 0:02:27]}  e5 {[%clk 0:01:26]} 38. dxe5 {[%clk 0:02:27]}  fxe5 {[%clk 0:01:27]} 39. Re6+ {[%clk 0:02:24]}  Kf7 {[%clk 0:01:26]} 40. Rxe5 {[%clk 0:02:25]}  Rxc5 {[%clk 0:01:26]} 41. Rf5+ {[%clk 0:02:23]}  Kg6 {[%clk 0:01:23]} 42. Kf3 {[%clk 0:02:22]}  Ra5 {[%clk 0:01:18]} 43. Rh5 {[%clk 0:02:21]}  Rb5 {[%clk 0:01:15]} 44. Kg3 {[%clk 0:02:22]}  Ra5 {[%clk 0:01:13]} 45. Rf5 {[%clk 0:02:22]}  Rb5 {[%clk 0:01:13]} 46. Kh4 {[%clk 0:02:22]}  h6 {[%clk 0:01:10]} 47. e4 {[%clk 0:02:18]}  Rb2 {[%clk 0:01:09]} 48. exd5 {[%clk 0:02:17]}  Rd2 {[%clk 0:01:07]} 49. f3 {[%clk 0:02:16]}  Rg2 {[%clk 0:01:04]} 50. Kh3 {[%clk 0:02:16]}  Rd2 {[%clk 0:01:04]} 51. Kg3 {[%clk 0:02:17]}  Rd4 {[%clk 0:01:03]} 52. Kf2 {[%clk 0:02:17]}  Rd3 {[%clk 0:01:01]} 53. Ke2 {[%clk 0:02:17]}  Rd4 {[%clk 0:01:01]} 54. Ke3 {[%clk 0:02:18]}  Rd1 {[%clk 0:01:01]} 55. Ke4 {[%clk 0:02:19]}  Rd2 {[%clk 0:00:56]} 56. Ke5 {[%clk 0:02:18]} 1-0


[Site "https://www.chess.com"]

[Event "Titled Tuesday Blitz March 08 Late 2022"]
[White "Mangialardo, Tiago Carvalho"]
[Black "Rottenwohrer Suarez, Juan"]
[WhiteFideId "2130718"]
[BlackFideId "32068182"]
[WhiteElo "2087"]
[BlackElo "2158"]
[Result "0-1"]
[Round "01"]
[TimeControl "180+1"]
[Date "2022.03.09"]
[WhiteClock "0:00:05"]
[BlackClock "0:01:02"]

1. e4 {[%clk 0:02:58]}  c5 {[%clk 0:02:59]} 2. Nf3 {[%clk 0:02:57]}  e6 {[%clk 0:03:00]} 3. d4 {[%clk 0:02:57]}  cxd4 {[%clk 0:03:01]} 4. Nxd4 {[%clk 0:02:57]}  Nc6 {[%clk 0:03:01]} 5. Nc3 {[%clk 0:02:56]}  Qc7 {[%clk 0:02:58]} 6. Be2 {[%clk 0:02:50]}  Nf6 {[%clk 0:02:39]} 7. O-O {[%clk 0:02:47]}  a6 {[%clk 0:02:33]} 8. a3 {[%clk 0:02:19]}  Be7 {[%clk 0:02:14]} 9. Re1 {[%clk 0:02:17]}  O-O {[%clk 0:02:14]} 10. Be3 {[%clk 0:01:55]}  b5 {[%clk 0:02:14]} 11. Nb3 {[%clk 0:01:54]}  Bb7 {[%clk 0:02:10]} 12. Bf3 {[%clk 0:01:53]}  Rfd8 {[%clk 0:02:08]} 13. Qe2 {[%clk 0:01:50]}  Ne5 {[%clk 0:02:07]} 14. Rad1 {[%clk 0:01:44]}  Rac8 {[%clk 0:02:06]} 15. Bd4 {[%clk 0:01:33]}  Nxf3+ {[%clk 0:01:54]} 16. Qxf3 {[%clk 0:01:29]}  d5 {[%clk 0:01:54]} 17. e5 {[%clk 0:01:27]}  Nd7 {[%clk 0:01:53]} 18. Qg3 {[%clk 0:01:25]}  Nc5 {[%clk 0:01:49]} 19. Nc1 {[%clk 0:01:12]}  Ne4 {[%clk 0:01:40]} 20. Nxe4 {[%clk 0:01:10]}  dxe4 {[%clk 0:01:41]} 21. c3 {[%clk 0:01:07]}  Bc5 {[%clk 0:01:40]} 22. Qe3 {[%clk 0:01:03]}  Bxd4 {[%clk 0:01:35]} 23. cxd4 {[%clk 0:00:56]}  Qc2 {[%clk 0:01:29]} 24. Qb3 {[%clk 0:00:51]}  Bd5 {[%clk 0:01:14]} 25. Qxc2 {[%clk 0:00:46]}  Rxc2 {[%clk 0:01:15]} 26. Ne2 {[%clk 0:00:29]}  Rxb2 {[%clk 0:01:10]} 27. Nc3 {[%clk 0:00:26]}  Rb3 {[%clk 0:01:10]} 28. Nxe4 {[%clk 0:00:18]}  Bxe4 {[%clk 0:01:09]} 29. Rxe4 {[%clk 0:00:19]}  Rxa3 {[%clk 0:01:10]} 30. f4 {[%clk 0:00:19]}  g6 {[%clk 0:01:09]} 31. g4 {[%clk 0:00:18]}  b4 {[%clk 0:01:09]} 32. Kf2 {[%clk 0:00:16]}  Rc8 {[%clk 0:01:07]} 33. Rb1 {[%clk 0:00:15]}  Rc2+ {[%clk 0:01:06]} 34. Ke1 {[%clk 0:00:14]}  a5 {[%clk 0:01:07]} 35. h4 {[%clk 0:00:13]}  Rh3 {[%clk 0:01:03]} 36. f5 {[%clk 0:00:05]}  Rh1# {[%clk 0:01:02]} 0-1


[Site "https://www.chess.com"]

[Event "Titled Tuesday Blitz March 08 Late 2022"]
[White "Manukyan, Sargis A."]
[Black "Martirosyan, Haik M."]
[WhiteFideId "13303970"]
[BlackFideId "13306553"]
[WhiteElo "2187"]
[BlackElo "2735"]
[Result "0-1"]
[Round "01"]
[TimeControl "180+1"]
[Date "2022.03.08"]
[WhiteClock "0:00:09"]
[BlackClock "0:01:22"]

1. d4 {[%clk 0:02:59]}  g6 {[%clk 0:02:59]} 2. c4 {[%clk 0:02:59]}  Bg7 {[%clk 0:02:59]} 3. Nc3 {[%clk 0:03:00]}  d6 {[%clk 0:03:00]} 4. Nf3 {[%clk 0:03:00]}  Nd7 {[%clk 0:02:59]} 5. h3 {[%clk 0:03:01]}  e5 {[%clk 0:02:59]} 6. dxe5 {[%clk 0:03:02]}  dxe5 {[%clk 0:02:58]} 7. e3 {[%clk 0:03:01]}  Ngf6 {[%clk 0:02:57]} 8. Be2 {[%clk 0:03:02]}  O-O {[%clk 0:02:57]} 9. O-O {[%clk 0:03:02]}  e4 {[%clk 0:02:57]} 10. Nd2 {[%clk 0:03:02]}  Re8 {[%clk 0:02:56]} 11. Qc2 {[%clk 0:03:03]}  Qe7 {[%clk 0:02:50]} 12. b3 {[%clk 0:03:03]}  c6 {[%clk 0:02:44]} 13. Bb2 {[%clk 0:03:04]}  h5 {[%clk 0:02:39]} 14. Rfd1 {[%clk 0:03:04]}  Nf8 {[%clk 0:02:28]} 15. Nf1 {[%clk 0:02:59]}  N8h7 {[%clk 0:02:26]} 16. Qd2 {[%clk 0:02:48]}  Ng5 {[%clk 0:02:08]} 17. Qd6 {[%clk 0:02:47]}  Qxd6 {[%clk 0:02:07]} 18. Rxd6 {[%clk 0:02:48]}  Nd7 {[%clk 0:02:00]} 19. Na4 {[%clk 0:02:42]}  Bxb2 {[%clk 0:01:59]} 20. Nxb2 {[%clk 0:02:43]}  h4 {[%clk 0:01:58]} 21. Rad1 {[%clk 0:02:42]}  Ne5 {[%clk 0:01:59]} 22. Rd8 {[%clk 0:02:40]}  Bf5 {[%clk 0:01:55]} 23. Rxa8 {[%clk 0:02:38]}  Rxa8 {[%clk 0:01:56]} 24. Na4 {[%clk 0:02:33]}  Kg7 {[%clk 0:01:54]} 25. Nc3 {[%clk 0:02:26]}  Re8 {[%clk 0:01:52]} 26. Nh2 {[%clk 0:02:22]}  a5 {[%clk 0:01:49]} 27. Na4 {[%clk 0:02:17]}  Ne6 {[%clk 0:01:46]} 28. Ng4 {[%clk 0:02:05]}  Bxg4 {[%clk 0:01:46]} 29. Bxg4 {[%clk 0:02:05]}  f5 {[%clk 0:01:44]} 30. Be2 {[%clk 0:02:05]}  Kf6 {[%clk 0:01:44]} 31. Kf1 {[%clk 0:01:57]}  g5 {[%clk 0:01:43]} 32. Rd6 {[%clk 0:01:49]}  Rd8 {[%clk 0:01:43]} 33. Rxd8 {[%clk 0:01:43]}  Nxd8 {[%clk 0:01:44]} 34. Nc5 {[%clk 0:01:29]}  Ke7 {[%clk 0:01:43]} 35. Ke1 {[%clk 0:01:28]}  Kd6 {[%clk 0:01:44]} 36. Na4 {[%clk 0:01:27]}  Ne6 {[%clk 0:01:44]} 37. Kd2 {[%clk 0:01:27]}  Nc5 {[%clk 0:01:44]} 38. Nxc5 {[%clk 0:01:06]}  Kxc5 {[%clk 0:01:44]} 39. Kc3 {[%clk 0:01:06]}  b5 {[%clk 0:01:45]} 40. cxb5 {[%clk 0:01:06]}  cxb5 {[%clk 0:01:46]} 41. a3 {[%clk 0:01:01]}  b4+ {[%clk 0:01:43]} 42. axb4+ {[%clk 0:01:02]}  axb4+ {[%clk 0:01:44]} 43. Kd2 {[%clk 0:01:01]}  Kd5 {[%clk 0:01:44]} 44. Ba6 {[%clk 0:00:51]}  Ke6 {[%clk 0:01:44]} 45. Be2 {[%clk 0:00:46]}  Kf6 {[%clk 0:01:43]} 46. Ke1 {[%clk 0:00:44]}  f4 {[%clk 0:01:42]} 47. Kd2 {[%clk 0:00:43]}  Kf5 {[%clk 0:01:43]} 48. f3 {[%clk 0:00:23]}  exf3 {[%clk 0:01:39]} 49. gxf3 {[%clk 0:00:24]}  Nd7 {[%clk 0:01:32]} 50. Bd3+ {[%clk 0:00:18]}  Ke5 {[%clk 0:01:32]} 51. Bc2 {[%clk 0:00:16]}  fxe3+ {[%clk 0:01:29]} 52. Kxe3 {[%clk 0:00:16]}  Nf6 {[%clk 0:01:30]} 53. Be4 {[%clk 0:00:07]}  Nh5 {[%clk 0:01:30]} 54. Bb7 {[%clk 0:00:04]}  Nf4 {[%clk 0:01:31]} 55. Bc8 {[%clk 0:00:05]}  Nd5+ {[%clk 0:01:27]} 56. Kd3 {[%clk 0:00:05]}  Kf4 {[%clk 0:01:23]} 57. Bg4 {[%clk 0:00:06]}  Ne3 {[%clk 0:01:22]} 58. Kd4 {[%clk 0:00:04]}  Nxg4 {[%clk 0:01:19]} 59. fxg4 {[%clk 0:00:05]}  Kg3 {[%clk 0:01:20]} 60. Kc4 {[%clk 0:00:05]}  Kxh3 {[%clk 0:01:20]} 61. Kxb4 {[%clk 0:00:06]}  Kxg4 {[%clk 0:01:20]} 62. Kc5 {[%clk 0:00:07]}  h3 {[%clk 0:01:20]} 63. b4 {[%clk 0:00:08]}  h2 {[%clk 0:01:21]} 64. b5 {[%clk 0:00:09]}  h1=Q {[%clk 0:01:22]} 65. b6 {[%clk 0:00:09]}  Qb7 {[%clk 0:01:22]} 0-1


[Site "https://www.chess.com"]

[Event "Titled Tuesday Blitz March 08 Late 2022"]
[White "Martinez Alcantara, Jose Eduardo"]
[Black "Kopczynski, Michal"]
[WhiteFideId "3805662"]
[BlackFideId "1124200"]
[WhiteElo "2690"]
[BlackElo "2235"]
[Result "1-0"]
[Round "01"]
[TimeControl "180+1"]
[Date "2022.03.08"]
[WhiteClock "0:01:47"]
[BlackClock "0:00:36"]

1. e4 {[%clk 0:02:59]}  c5 {[%clk 0:02:59]} 2. Nf3 {[%clk 0:02:59]}  d6 {[%clk 0:03:00]} 3. c3 {[%clk 0:02:59]}  Nf6 {[%clk 0:02:59]} 4. h3 {[%clk 0:03:00]}  g6 {[%clk 0:03:00]} 5. Bd3 {[%clk 0:03:00]}  Bg7 {[%clk 0:03:00]} 6. Bc2 {[%clk 0:03:01]}  O-O {[%clk 0:03:01]} 7. O-O {[%clk 0:03:01]}  Nc6 {[%clk 0:03:01]} 8. d4 {[%clk 0:03:02]}  cxd4 {[%clk 0:03:01]} 9. cxd4 {[%clk 0:03:02]}  h6 {[%clk 0:02:58]} 10. Nc3 {[%clk 0:03:02]}  e5 {[%clk 0:02:57]} 11. d5 {[%clk 0:03:02]}  Ne7 {[%clk 0:02:57]} 12. a4 {[%clk 0:02:55]}  Nh5 {[%clk 0:02:55]} 13. Re1 {[%clk 0:02:55]}  f5 {[%clk 0:02:55]} 14. exf5 {[%clk 0:02:53]}  Bxf5 {[%clk 0:02:41]} 15. Bxf5 {[%clk 0:02:50]}  Nxf5 {[%clk 0:02:41]} 16. Ne4 {[%clk 0:02:43]}  Nh4 {[%clk 0:02:31]} 17. Nxh4 {[%clk 0:02:27]}  Qxh4 {[%clk 0:02:32]} 18. Qg4 {[%clk 0:02:27]}  Qxg4 {[%clk 0:02:23]} 19. hxg4 {[%clk 0:02:27]}  Nf6 {[%clk 0:02:02]} 20. Nxf6+ {[%clk 0:02:27]}  Rxf6 {[%clk 0:01:59]} 21. Be3 {[%clk 0:02:27]}  Rf7 {[%clk 0:01:44]} 22. Rac1 {[%clk 0:02:26]}  b6 {[%clk 0:01:43]} 23. Rc6 {[%clk 0:02:24]}  Bf8 {[%clk 0:01:39]} 24. Rec1 {[%clk 0:02:22]}  Rd8 {[%clk 0:01:31]} 25. b4 {[%clk 0:02:20]}  Kg7 {[%clk 0:01:27]} 26. Kf1 {[%clk 0:02:15]}  Be7 {[%clk 0:01:22]} 27. Rc7 {[%clk 0:02:11]}  Bg5 {[%clk 0:01:03]} 28. Rxf7+ {[%clk 0:02:06]}  Kxf7 {[%clk 0:01:04]} 29. Rc7+ {[%clk 0:02:06]}  Kf6 {[%clk 0:01:05]} 30. Ke2 {[%clk 0:01:58]}  Ra8 {[%clk 0:00:59]} 31. Rd7 {[%clk 0:01:54]}  Bxe3 {[%clk 0:00:55]} 32. Kxe3 {[%clk 0:01:54]}  Kg5 {[%clk 0:00:54]} 33. Rxd6 {[%clk 0:01:54]}  Rc8 {[%clk 0:00:50]} 34. Rc6 {[%clk 0:01:52]}  Rd8 {[%clk 0:00:49]} 35. Ke4 {[%clk 0:01:48]}  Rf8 {[%clk 0:00:47]} 36. f3 {[%clk 0:01:48]}  Rf4+ {[%clk 0:00:44]} 37. Kxe5 {[%clk 0:01:48]}  Rxb4 {[%clk 0:00:45]} 38. d6 {[%clk 0:01:49]}  Rb1 {[%clk 0:00:35]} 39. d7 {[%clk 0:01:47]}  Re1+ {[%clk 0:00:36]} 40. Kd6 {[%clk 0:01:47]} 1-0


[Site "https://www.chess.com"]